fUSD/lending_fUSD_20250110
["ID","MTS","AMOUNT","RATE_DAILY","PERIOD"]
[348397121,1736505032328,-500.0,9.997e-05,2]
[348397122,1736505032338,-505.94925295,9.997e-05,2]
[348397123,1736505032347,-500.0,9.997e-05,2]
[348397124,1736505032356,-500.0,9.997e-05,2]
[348397125,1736505032367,-500.0,9.997e-05,2]
[348397126,1736505032376,-500.0,9.997e-05,2]
[348397127,1736505032385,-500.0,9.997e-05,2]
[348397128,1736505032395,-500.0,9.997e-05,2]
[348397129,1736505032404,-500.0,9.997e-05,2]
[348397130,1736505032413,-541.81,9.997e-05,2]
[348397131,1736505032423,-500.0,9.997e-05,2]
[348397133,1736505032432,-533.72,9.997e-05,2]
[348397135,1736505032441,-502.63,9.997e-05,2]
[348397137,1736505032451,-500.0,9.997e-05,2]
[348397139,1736505032460,-500.0,9.997e-05,2]
[348397141,1736505032469,-500.0,9.997e-05,2]
[348397143,1736505032477,-500.0,9.997e-05,2]
[348397145,1736505032487,-500.0,9.997e-05,2]
[348397147,1736505032496,-500.0,9.997e-05,2]
[348397149,1736505032504,-500.0,9.997e-05,2]
[348397151,1736505032514,-500.0,9.997e-05,2]
[348397153,1736505032523,-500.0,9.997e-05,2]
[348397155,1736505032532,-500.0,9.997e-05,2]
[348397157,1736505032541,-500.0,9.997e-05,2]
[348397159,1736505032550,-542.74,9.997e-05,2]
[348397161,1736505032560,-500.0,9.997e-05,2]
[348397163,1736505032568,-899.94,9.997e-05,2]
[348397165,1736505032578,-500.0,9.997e-05,2]
[348397167,1736505032587,-500.0,9.997e-05,2]
[348397169,1736505032597,-504.94,9.997e-05,2]
[348397171,1736505032607,-1912.96,9.997e-05,2]
[348397173,1736505032616,-500.0,9.997e-05,2]
[348397174,1736505032626,-500.0,9.997e-05,2]
[348397176,1736505032635,-500.0,9.997e-05,2]
[348397179,1736505032644,-531.92,9.997e-05,2]
[348397181,1736505032654,-500.0,9.997e-05,2]
[348397183,1736505032664,-500.0,9.997e-05,2]
[348397185,1736505032674,-500.0,9.997e-05,2]
[348397187,1736505032683,-612.56,9.997e-05,2]
[348397189,1736505032692,-500.0,9.997e-05,2]
[348397191,1736505032702,-594.03,9.997e-05,2]
[348397193,1736505032712,-689.08,9.997e-05,2]
[348397195,1736505032722,-500.0,9.997e-05,2]
[348397197,1736505032731,-500.0,9.997e-05,2]
[348397199,1736505032740,-617.01,9.997e-05,2]
[348397201,1736505032750,-500.0,9.997e-05,2]
[348397203,1736505032760,-737.43,9.997e-05,2]
[348397205,1736505032770,-500.0,9.997e-05,2]
[348397207,1736505032779,-627.07,9.997e-05,2]
[348397209,1736505032789,-958.67,9.997e-05,2]
[348397211,1736505032798,-822.99016447,9.998e-05,2]
[348397212,1736505032808,-500.0,9.998e-05,2]
[348397215,1736505032818,-483.89928181,9.998e-05,2]
[348397216,1736505032828,-500.0,9.998e-05,2]
[348397218,1736505032838,-666.4,9.998e-05,2]
[348397220,1736505032847,-2204.44,9.998e-05,2]
[348397223,1736505032857,-818.49,9.998e-05,2]
[348397225,1736505032867,-932.01,9.998e-05,2]
[348397227,1736505032877,-500.0,9.998e-05,2]
[348397229,1736505032886,-1380.44,9.998e-05,2]
[348397231,1736505032895,-727.83,9.998e-05,2]
[348397233,1736505032904,-659.48,9.998e-05,2]
[348397234,1736505032913,-782.0,9.998e-05,2]
[348397237,1736505032924,-500.0,9.998e-05,2]
[348397238,1736505032935,-1181.88,9.998e-05,2]
[348397241,1736505032945,-532.32,9.998e-05,2]
[348397242,1736505032958,-500.0,9.998e-05,2]
[348397245,1736505032969,-737.4,9.998e-05,2]
[348397247,1736505032978,-2702.48,9.998e-05,2]
[348397249,1736505032988,-524.77,9.998e-05,2]
[348397251,1736505032997,-1848.26,9.998e-05,2]
[348397253,1736505033007,-520.3,9.998e-05,2]
[348397254,1736505033017,-638.86,9.998e-05,2]
[348397256,1736505033026,-1323.71,9.998e-05,2]
[348397257,1736505033035,-1488.55,9.998e-05,2]
[348397259,1736505033044,-807.59,9.998e-05,2]
[348397261,1736505033054,-1582.27,9.998e-05,2]
[348397263,1736505033063,-998.35,9.998e-05,2]
[348397265,1736505033073,-500.0,9.998e-05,2]
[348397267,1736505033082,-500.0,9.998e-05,2]
[348397269,1736505033092,-1615.33,9.998e-05,2]
[348397271,1736505033101,-914.08,9.998e-05,2]
[348397273,1736505033110,-626.73,9.999e-05,2]
[348397275,1736505033122,-802.54,9.999e-05,2]
[348397277,1736505033131,-950.53,9.999e-05,2]
[348397279,1736505033140,-2204.44,9.999e-05,2]
[348397281,1736505033150,-2204.44,9.999e-05,2]
[348397283,1736505033160,-2204.44,9.999e-05,2]
[348397285,1736505033169,-2204.44,9.999e-05,2]
[348397287,1736505033179,-2204.44,9.999e-05,2]
[348397289,1736505033189,-2204.44,9.999e-05,2]
[348397291,1736505033201,-2204.44,9.999e-05,2]
[348397293,1736505033211,-2204.44,9.999e-05,2]
[348397295,1736505033220,-2204.44,9.999e-05,2]
[348397297,1736505033230,-1000.0,9.999e-05,2]
[348397299,1736505033239,-722.25,9.999e-05,2]
[348397301,1736505033249,-500.0,9.999e-05,2]
[348397303,1736505033259,-1591.21,9.999e-05,2]
[348397305,1736505033269,-557.08,9.999e-05,2]
[348397307,1736505033280,-1072.59,9.999e-05,2]
[348397309,1736505033290,-500.0,9.999e-05,2]
[348397311,1736505033299,-500.0,9.999e-05,2]
[348397313,1736505033309,-1025.48,9.999e-05,2]
[348397315,1736505033318,-1345.27,9.999e-05,2]
[348397317,1736505033328,-676.94,9.999e-05,2]
[348397319,1736505033338,-551.26,9.999e-05,2]
[348397321,1736505033347,-500.0,9.999e-05,2]
[348397323,1736505033356,-1301.47,9.999e-05,2]
[348397325,1736505033366,-859.52,9.999e-05,2]
[348397327,1736505033375,-503.61,9.999e-05,2]
[348397329,1736505033385,-610.65,9.999e-05,2]
[348397331,1736505033394,-549.43,9.999e-05,2]
[348397333,1736505033403,-500.0,9.999e-05,2]
[348397360,1736505033645,-916.73,9.999e-05,2]
[348397362,1736505033655,-500.0,9.999e-05,2]
[348397364,1736505033665,-634.68,9.999e-05,2]
[348397366,1736505033675,-277.19,0.0001,2]
[348397368,1736505033685,-211850.33392849,0.0001,2]
[348397865,1736505039585,-907.064094,9.998e-05,2]
[348397883,1736505039748,-852.22895866,9.998e-05,2]
[348397891,1736505039839,-253.90758358,9.998e-05,2]
[348398159,1736505042598,-1158.948435,9.998e-05,2]
[348398160,1736505042829,-532.44092876,9.998e-05,2]
[348398162,1736505042838,-789.91,9.998e-05,2]
[348398164,1736505042848,-670.37,9.998e-05,2]
[348398166,1736505042857,-1188.91,9.998e-05,2]
[348398168,1736505042866,-635.65,9.999e-05,2]
[348398170,1736505042875,-500.0,9.999e-05,2]
[348398172,1736505042885,-500.0,9.999e-05,2]
[348398174,1736505042894,-500.0,9.999e-05,2]
[348398176,1736505042903,-665.86,9.999e-05,2]
[348398178,1736505042912,-617317.92331438,0.0001,2]
[348398198,1736505513250,255.84633895,0.0001,4]
[348398199,1736505671294,500.0,9.999e-05,7]
[348398200,1736505813520,775.0,0.0002,120]
[348398201,1736505980801,799.04,8.219e-05,2]
[348398254,1736506231804,-250.0,8.714e-05,2]
[348398255,1736506231814,-594.49,8.761e-05,2]
[348398256,1736506231823,-1500.0,8.877e-05,2]
[348398257,1736506231832,-173.26,8.887e-05,2]
[348398258,1736506231842,-1000.0,8.887e-05,2]
[348398259,1736506231851,-308.88,8.902e-05,2]
[348398260,1736506231860,-16863.73755419,8.902e-05,2]
[348398261,1736506231869,-250.0,8.951e-05,2]
[348398262,1736506231880,-270.54,8.968e-05,2]
[348398263,1736506231889,-200.0,8.968e-05,2]
[348398264,1736506231899,-939.41,9.102e-05,2]
[348398265,1736506231908,-250.0,9.112e-05,2]
[348398266,1736506231917,-1407.98,9.138e-05,2]
[348398267,1736506231927,-944.34,9.268e-05,2]
[348398268,1736506231937,-150.0,9.315e-05,2]
[348398269,1736506231947,-167.47,9.37e-05,2]
[348398270,1736506231957,-500.0,9.507e-05,2]
[348398271,1736506231971,-1636.2946,9.602e-05,2]
[348398272,1736506231980,-705.0,9.605e-05,2]
[348398273,1736506231990,-501.0,9.644e-05,2]
[348398274,1736506231999,-500.0,9.671e-05,2]
[348398275,1736506232011,-381.69,9.691e-05,2]
[348398276,1736506232020,-1471.632,9.801e-05,2]
[348398277,1736506232030,-150.0,9.898e-05,2]
[348398278,1736506232041,-1000.0,9.898e-05,2]
[348398279,1736506232050,-4068.8054,9.899e-05,2]
[348398280,1736506232060,-23313.1063,9.899e-05,2]
[348398281,1736506232069,-1389.58948208,9.899e-05,2]
[348398282,1736506232081,-321.39385121,9.899e-05,2]
[348398283,1736506232094,-856.04257068,9.899e-05,2]
[348398284,1736506232105,-1703.65128831,9.899e-05,2]
[348398285,1736506232117,-729.32280772,9.899e-05,2]
[348398286,1736506232126,-653.6791,9.899e-05,2]
[348398287,1736506232135,-71311.5102,9.9e-05,2]
[348398288,1736506232145,-500.0,9.996e-05,2]
[348398289,1736506232155,-526.53,9.996e-05,2]
[348398290,1736506232164,-500.0,9.997e-05,2]
[348398291,1736506232173,-502.61109831,9.997e-05,2]
[348398292,1736506232183,-501.43689111,9.997e-05,2]
[348398293,1736506232192,-360.77,9.997e-05,2]
[348398295,1736506232202,-500.85699091,9.997e-05,2]
[348398297,1736506232212,-500.0,9.997e-05,2]
[348398298,1736506232220,-500.0,9.997e-05,2]
[348398300,1736506232230,-311.45592821,9.997e-05,2]
[348398302,1736506232239,-501.109774,9.997e-05,2]
[348398304,1736506232248,-503.11952291,9.997e-05,2]
[348398306,1736506232257,-500.0,9.997e-05,2]
[348398308,1736506232266,-500.0,9.997e-05,2]
[348398310,1736506232275,-500.0,9.997e-05,2]
[348398311,1736506232284,-500.0,9.997e-05,2]
[348398313,1736506232293,-500.0,9.997e-05,2]
[348398315,1736506232303,-500.0,9.997e-05,2]
[348398317,1736506232312,-160.23358002,9.997e-05,2]
[348398319,1736506232321,-174.99972032,9.997e-05,2]
[348398321,1736506232330,-1548.02,9.997e-05,2]
[348398324,1736506232339,-500.0,9.997e-05,2]
[348398327,1736506232348,-500.0,9.997e-05,2]
[348398330,1736506232357,-500.0,9.997e-05,2]
[348398332,1736506232366,-500.0,9.997e-05,2]
[348398335,1736506232375,-500.0,9.997e-05,2]
[348398337,1736506232384,-500.0,9.997e-05,2]
[348398339,1736506232393,-500.0,9.997e-05,2]
[348398341,1736506232402,-500.0,9.997e-05,2]
[348398343,1736506232411,-500.0,9.997e-05,2]
[348398345,1736506232419,-500.0,9.997e-05,2]
[348398347,1736506232428,-505.78953041,9.997e-05,2]
[348398349,1736506232437,-500.0,9.997e-05,2]
[348398350,1736506232447,-508.43451216,9.997e-05,2]
[348398352,1736506232457,-3550.23,9.997e-05,2]
[348398354,1736506232466,-500.0,9.997e-05,2]
[348398356,1736506232475,-500.0,9.997e-05,2]
[348398358,1736506232485,-364.33760799,9.997e-05,2]
[348398360,1736506232494,-508.64144669,9.997e-05,2]
[348398362,1736506232503,-500.0,9.997e-05,2]
[348398364,1736506232511,-500.0,9.997e-05,2]
[348398365,1736506232520,-500.0,9.997e-05,2]
[348398366,1736506232530,-500.0,9.997e-05,2]
[348398367,1736506232539,-500.0,9.997e-05,2]
[348398368,1736506232548,-494.35946946,9.997e-05,2]
[348398369,1736506232557,-336.2301917,9.997e-05,2]
[348398370,1736506232566,-169.37553502,9.997e-05,2]
[348398371,1736506232577,-330.62446498,9.997e-05,2]
[348398372,1736506232586,-500.0,9.997e-05,2]
[348398373,1736506232595,-500.0,9.997e-05,2]
[348398374,1736506232604,-500.0,9.997e-05,2]
[348398375,1736506232614,-221.75139142,9.997e-05,2]
[348398376,1736506232625,-278.24860858,9.997e-05,2]
[348398377,1736506232634,-506.0494299,9.997e-05,2]
[348398379,1736506232644,-224.42369342,9.997e-05,2]
[348398382,1736506232663,-275.57630658,9.997e-05,2]
[348398384,1736506232671,-505.01218029,9.997e-05,2]
[348398386,1736506232681,-500.0,9.997e-05,2]
[348398388,1736506232690,-587.33,9.997e-05,2]
[348398390,1736506232699,-507.15,9.997e-05,2]
[348398392,1736506232709,-500.0,9.997e-05,2]
[348398394,1736506232719,-1075.38,9.997e-05,2]
[348398396,1736506232728,-500.0,9.997e-05,2]
[348398397,1736506232737,-500.0,9.997e-05,2]
[348398398,1736506232746,-500.0,9.997e-05,2]
[348398399,1736506232755,-500.0,9.997e-05,2]
[348398400,1736506232764,-500.0,9.997e-05,2]
[348398401,1736506232773,-2130.83408229,9.997e-05,2]
[348398402,1736506232784,-711.47500005,9.997e-05,2]
[348398403,1736506232795,-1198.4,9.997e-05,2]
[348398404,1736506232807,-929.64434,9.997e-05,2]
[348398405,1736506232828,-23.55657766,9.997e-05,2]
[348398406,1736506232838,-666.71,9.997e-05,2]
[348398407,1736506232847,-500.0,9.997e-05,2]
[348398408,1736506232857,-500.0,9.997e-05,2]
[348398409,1736506232867,-500.0,9.997e-05,2]
[348398410,1736506232877,-500.0,9.997e-05,2]
[348398411,1736506232887,-375.87150038,9.997e-05,2]
[348398412,1736506232899,-500.0,9.997e-05,2]
[348398413,1736506232908,-504.07263845,9.997e-05,2]
[348398414,1736506232919,-501.70056532,9.997e-05,2]
[348398415,1736506232928,-587.54,9.997e-05,2]
[348398416,1736506232938,-501.48072244,9.997e-05,2]
[348398417,1736506232949,-500.77967767,9.997e-05,2]
[348398418,1736506232959,-501.77485595,9.997e-05,2]
[348398419,1736506232973,-500.0,9.997e-05,2]
[348398420,1736506232984,-500.57618709,9.997e-05,2]
[348398421,1736506232995,-500.60984247,9.997e-05,2]
[348398422,1736506233005,-43.60598879,9.997e-05,2]
[348398429,1736506237614,-151.84057745,9.973e-05,2]
[348398431,1736506237624,-629.07,9.996e-05,2]
[348398432,1736506237633,-99.91044266,9.997e-05,2]
[348398433,1736506237645,-356.48356855,9.997e-05,2]
[348398434,1736506237654,-500.0,9.997e-05,2]
[348398435,1736506237664,-500.0,9.997e-05,2]
[348398436,1736506237673,-1027.9,9.997e-05,2]
[348398437,1736506237682,-500.0,9.997e-05,2]
[348398438,1736506237691,-501.71954857,9.997e-05,2]
[348398439,1736506237701,-500.0,9.997e-05,2]
[348398440,1736506237710,-500.0,9.997e-05,2]
[348398441,1736506237719,-852.85,9.997e-05,2]
[348398442,1736506237729,-2629.33,9.997e-05,2]
[348398443,1736506237738,-500.57432168,9.997e-05,2]
[348398444,1736506237747,-500.0,9.997e-05,2]
[348398445,1736506237756,-500.4992597,9.997e-05,2]
[348398446,1736506237765,-500.0,9.997e-05,2]
[348398447,1736506237775,-500.0,9.997e-05,2]
[348398448,1736506237784,-549.12,9.997e-05,2]
[348398449,1736506237793,-500.32362983,9.997e-05,2]
[348398450,1736506237802,-239.95894717,9.997e-05,2]
[348398451,1736506237814,-266.48715164,9.997e-05,2]
[348398452,1736506237824,-387.19186097,9.997e-05,2]
[348398453,1736506237837,-112.80813903,9.997e-05,2]
[348398454,1736506237846,-728.86,9.997e-05,2]
[348398455,1736506237855,-501.09,9.997e-05,2]
[348398456,1736506237865,-500.0,9.997e-05,2]
[348398457,1736506237875,-319.4249054,9.997e-05,2]
[348398458,1736506237893,-180.5750946,9.997e-05,2]
[348398459,1736506237903,-461.1102594,9.997e-05,2]
[348398460,1736506237915,-40.55010648,9.997e-05,2]
[348398461,1736506237925,-500.0,9.997e-05,2]
[348398462,1736506237936,-500.0,9.997e-05,2]
[348398463,1736506237945,-1037.33,9.997e-05,2]
[348398464,1736506237955,-1372.14,9.997e-05,2]
[348398465,1736506237966,-500.0,9.997e-05,2]
[348398466,1736506237975,-500.0,9.997e-05,2]
[348398467,1736506237985,-500.0,9.997e-05,2]
[348398468,1736506237994,-37.92285352,9.997e-05,2]
[348398476,1736506239767,-278.66593548,9.997e-05,2]
[348398477,1736506239776,-500.0,9.997e-05,2]
[348398478,1736506239786,-500.0,9.997e-05,2]
[348398479,1736506239796,-500.0,9.997e-05,2]
[348398480,1736506239805,-500.0,9.997e-05,2]
[348398481,1736506239814,-1289.22,9.997e-05,2]
[348398482,1736506239823,-500.0,9.997e-05,2]
[348398483,1736506239833,-500.0,9.997e-05,2]
[348398484,1736506239842,-500.0,9.997e-05,2]
[348398485,1736506239851,-500.5667896,9.997e-05,2]
[348398486,1736506239860,-851.73,9.997e-05,2]
[348398487,1736506239869,-2175.95,9.997e-05,2]
[348398488,1736506239879,-688.98,9.997e-05,2]
[348398489,1736506239888,-507.24094463,9.997e-05,2]
[348398490,1736506239897,-500.0,9.997e-05,2]
[348398491,1736506239907,-500.0,9.997e-05,2]
[348398492,1736506239916,-500.0,9.997e-05,2]
[348398493,1736506239925,-500.0,9.997e-05,2]
[348398494,1736506239934,-746.29,9.997e-05,2]
[348398495,1736506239944,-288.75622264,9.997e-05,2]
[348398496,1736506239953,-500.0,9.997e-05,2]
[348398497,1736506239967,-500.0,9.997e-05,2]
[348398498,1736506239976,-501.07088737,9.997e-05,2]
[348398499,1736506239985,-476.41427445,9.997e-05,2]
[348398500,1736506239994,-500.0,9.997e-05,2]
[348398501,1736506240003,-500.0,9.997e-05,2]
[348398502,1736506240015,-539.97857043,9.997e-05,2]
[348398503,1736506240024,-500.0,9.997e-05,2]
[348398504,1736506240034,-508.22969326,9.997e-05,2]
[348398505,1736506240045,-500.0,9.997e-05,2]
[348398506,1736506240054,-1307.49,9.997e-05,2]
[348398507,1736506240063,-500.0,9.997e-05,2]
[348398508,1736506240072,-582.11,9.997e-05,2]
[348398509,1736506240081,-500.0,9.997e-05,2]
[348398510,1736506240090,-500.0,9.997e-05,2]
[348398512,1736506240099,-500.0,9.997e-05,2]
[348398514,1736506240108,-500.0,9.997e-05,2]
[348398516,1736506240117,-500.0,9.997e-05,2]
[348398518,1736506240127,-500.0,9.997e-05,2]
[348398520,1736506240136,-500.0,9.997e-05,2]
[348398522,1736506240145,-500.0,9.997e-05,2]
[348398524,1736506240154,-500.0,9.997e-05,2]
[348398526,1736506240163,-1067.85,9.997e-05,2]
[348398528,1736506240172,-500.0,9.997e-05,2]
[348398530,1736506240181,-500.0,9.997e-05,2]
[348398531,1736506240190,-500.0,9.997e-05,2]
[348398532,1736506240199,-500.0,9.997e-05,2]
[348398533,1736506240212,-500.0,9.997e-05,2]
[348398534,1736506240221,-500.0,9.997e-05,2]
[348398535,1736506240230,-500.0,9.997e-05,2]
[348398536,1736506240239,-567.29,9.997e-05,2]
[348398537,1736506240249,-281.99606269,9.997e-05,2]
[348398538,1736506240258,-509.44,9.997e-05,2]
[348398539,1736506240267,-501.61535428,9.997e-05,2]
[348398540,1736506240276,-1000.27,9.997e-05,2]
[348398541,1736506240285,-507.96790213,9.997e-05,2]
[348398542,1736506240294,-606.04,9.997e-05,2]
[348398543,1736506240303,-504.50039644,9.997e-05,2]
[348398544,1736506240313,-501.93336177,9.997e-05,2]
[348398545,1736506240323,-500.0,9.997e-05,2]
[348398546,1736506240333,-501.05451407,9.997e-05,2]
[348398547,1736506240342,-500.0,9.997e-05,2]
[348398548,1736506240351,-503.12311388,9.997e-05,2]
[348398549,1736506240360,-1426.53,9.997e-05,2]
[348398550,1736506240371,-500.0,9.997e-05,2]
[348398551,1736506240381,-507.2910337,9.997e-05,2]
[348398552,1736506240391,-500.0,9.997e-05,2]
[348398553,1736506240402,-506.64006082,9.997e-05,2]
[348398554,1736506240415,-472.98846959,9.997e-05,2]
[348398555,1736506240425,-918.3,9.997e-05,2]
[348398556,1736506240436,-500.66180709,9.997e-05,2]
[348398557,1736506240446,-174.96732529,9.997e-05,2]
[348398558,1736506240459,-502.92236387,9.997e-05,2]
[348398559,1736506240468,-500.0,9.997e-05,2]
[348398560,1736506240477,-500.0,9.997e-05,2]
[348398561,1736506240486,-500.0,9.997e-05,2]
[348398562,1736506240495,-500.0,9.997e-05,2]
[348398563,1736506240505,-501.65646669,9.997e-05,2]
[348398564,1736506240514,-630.0,9.997e-05,2]
[348398565,1736506240522,-2157.23,9.997e-05,2]
[348398566,1736506240532,-500.0,9.997e-05,2]
[348398567,1736506240541,-500.0,9.997e-05,2]
[348398568,1736506240550,-500.0,9.997e-05,2]
[348398569,1736506240560,-504.39439074,9.997e-05,2]
[348398570,1736506240569,-662.73,9.997e-05,2]
[348398571,1736506240578,-1646.58,9.997e-05,2]
[348398572,1736506240587,-505.42714639,9.997e-05,2]
[348398573,1736506240597,-500.0,9.997e-05,2]
[348398574,1736506240606,-500.0,9.997e-05,2]
[348398575,1736506240615,-500.0,9.997e-05,2]
[348398576,1736506240624,-505.0901444,9.997e-05,2]
[348398577,1736506240633,-782.18,9.997e-05,2]
[348398578,1736506240653,-500.0,9.997e-05,2]
[348398579,1736506240662,-1000.0,9.998e-05,2]
[348398580,1736506240672,-503.1530637,9.998e-05,2]
[348398581,1736506240682,-591.69186423,9.998e-05,2]
[348398582,1736506240692,-503.20599932,9.998e-05,2]
[348398583,1736506240701,-503.54564719,9.998e-05,2]
[348398584,1736506240711,-270.37212377,9.998e-05,2]
[348398585,1736506240720,-503.33359347,9.998e-05,2]
[348398586,1736506240730,-503.22456951,9.998e-05,2]
[348398587,1736506240739,-341.79239332,9.998e-05,2]
[348398588,1736506240748,-501.5627085,9.998e-05,2]
[348398589,1736506240757,-501.54633416,9.998e-05,2]
[348398590,1736506240766,-501.19377109,9.998e-05,2]
[348398591,1736506240776,-501.59265713,9.998e-05,2]
[348398592,1736506240785,-500.0,9.998e-05,2]
[348398593,1736506240794,-500.0,9.998e-05,2]
[348398594,1736506240804,-500.0,9.998e-05,2]
[348398595,1736506240814,-533.29,9.998e-05,2]
[348398596,1736506240823,-500.86825527,9.998e-05,2]
[348398597,1736506240832,-330.14440531,9.998e-05,2]
[348398598,1736506240842,-580.48,9.998e-05,2]
[348398599,1736506240853,-277.529062,9.998e-05,2]
[348398600,1736506240863,-500.0,9.998e-05,2]
[348398601,1736506240872,-327.8160687,9.998e-05,2]
[348398602,1736506240882,-159.043304,9.998e-05,2]
[348398603,1736506240891,-501.29720124,9.998e-05,2]
[348398604,1736506240901,-500.0,9.998e-05,2]
[348398605,1736506240912,-500.0,9.998e-05,2]
[348398606,1736506240923,-500.0,9.998e-05,2]
[348398607,1736506240934,-501.44464057,9.998e-05,2]
[348398608,1736506240944,-156.301036,9.998e-05,2]
[348398609,1736506240953,-695.33,9.998e-05,2]
[348398610,1736506240967,-500.0,9.998e-05,2]
[348398611,1736506240977,-531.06,9.998e-05,2]
[348398612,1736506240986,-622.65,9.998e-05,2]
[348398613,1736506240995,-302.375203,9.998e-05,2]
[348398614,1736506241005,-500.0,9.998e-05,2]
[348398615,1736506241017,-582.33,9.998e-05,2]
[348398616,1736506241027,-500.0,9.998e-05,2]
[348398617,1736506241036,-500.0,9.998e-05,2]
[348398618,1736506241047,-500.0,9.998e-05,2]
[348398619,1736506241056,-500.0,9.998e-05,2]
[348398620,1736506241066,-500.0,9.998e-05,2]
[348398621,1736506241075,-500.0,9.998e-05,2]
[348398622,1736506241085,-500.0,9.998e-05,2]
[348398623,1736506241095,-500.0,9.998e-05,2]
[348398624,1736506241104,-500.0,9.998e-05,2]
[348398625,1736506241113,-157.60171822,9.998e-05,2]
[348398626,1736506241122,-500.0,9.998e-05,2]
[348398627,1736506241132,-500.0,9.998e-05,2]
[348398628,1736506241142,-500.0,9.998e-05,2]
[348398629,1736506241151,-500.0,9.998e-05,2]
[348398630,1736506241160,-597.59,9.998e-05,2]
[348398631,1736506241169,-500.0,9.998e-05,2]
[348398632,1736506241180,-500.0,9.998e-05,2]
[348398633,1736506241189,-640.62,9.998e-05,2]
[348398634,1736506241198,-501.68552284,9.998e-05,2]
[348398635,1736506241207,-500.0,9.998e-05,2]
[348398636,1736506241216,-500.0,9.998e-05,2]
[348398637,1736506241479,-500.0,9.998e-05,2]
[348398638,1736506241488,-502.16964848,9.998e-05,2]
[348398639,1736506241498,-500.0,9.998e-05,2]
[348398640,1736506241507,-500.0,9.998e-05,2]
[348398641,1736506241516,-500.0,9.998e-05,2]
[348398642,1736506241525,-500.0,9.998e-05,2]
[348398643,1736506241534,-500.0,9.998e-05,2]
[348398644,1736506241543,-500.0,9.998e-05,2]
[348398645,1736506241552,-500.0,9.998e-05,2]
[348398646,1736506241561,-500.0,9.998e-05,2]
[348398647,1736506241570,-500.0,9.998e-05,2]
[348398648,1736506241579,-500.0,9.998e-05,2]
[348398649,1736506241589,-629.52,9.998e-05,2]
[348398650,1736506241599,-500.0,9.998e-05,2]
[348398651,1736506241609,-500.0,9.998e-05,2]
[348398652,1736506241620,-500.0,9.998e-05,2]
[348398653,1736506241632,-500.0,9.998e-05,2]
[348398654,1736506241642,-500.0,9.998e-05,2]
[348398655,1736506241652,-609.05,9.998e-05,2]
[348398656,1736506241662,-500.0,9.998e-05,2]
[348398657,1736506241673,-648.73348907,9.998e-05,2]
[348398658,1736506241684,-500.0,9.998e-05,2]
[348398659,1736506241695,-672.97,9.998e-05,2]
[348398660,1736506241707,-661.52,9.998e-05,2]
[348398661,1736506241716,-500.0,9.998e-05,2]
[348398662,1736506241725,-500.0,9.998e-05,2]
[348398663,1736506241734,-520.41,9.998e-05,2]
[348398664,1736506241743,-500.0,9.998e-05,2]
[348398665,1736506241753,-1638.97,9.998e-05,2]
[348398666,1736506241763,-707.21,9.998e-05,2]
[348398667,1736506241774,-500.0,9.998e-05,2]
[348398668,1736506241784,-500.0,9.998e-05,2]
[348398669,1736506241794,-500.0,9.998e-05,2]
[348398670,1736506241803,-500.0,9.998e-05,2]
[348398671,1736506241812,-500.0,9.998e-05,2]
[348398672,1736506241821,-673.56,9.998e-05,2]
[348398673,1736506241831,-154.45454748,9.998e-05,2]
[348398674,1736506241840,-616.24,9.998e-05,2]
[348398675,1736506241850,-500.0,9.998e-05,2]
[348398676,1736506241859,-500.0,9.998e-05,2]
[348398677,1736506241868,-501.02885426,9.998e-05,2]
[348398678,1736506241878,-500.0,9.998e-05,2]
[348398679,1736506241889,-697.65,9.998e-05,2]
[348398680,1736506241899,-1217.97,9.998e-05,2]
[348398681,1736506241908,-500.0,9.998e-05,2]
[348398682,1736506241917,-566.04,9.998e-05,2]
[348398683,1736506241928,-500.0,9.998e-05,2]
[348398684,1736506241938,-500.0,9.998e-05,2]
[348398685,1736506241949,-501.14465816,9.998e-05,2]
[348398686,1736506241959,-635.97,9.998e-05,2]
[348398687,1736506241978,-500.0,9.998e-05,2]